Cogmind - Beta 13 @@@ ROGUE MODE // 2024.05.03 @ 23:33:42 Player: AntinDisguise Result: Self-destructed Performance ------------- Evolutions (1) 500 Regions Visited (2) 400 Robots Destroyed (15) 75 Value Destroyed (408) 408 Prototype IDs (0) 0 Alien Tech Used (0) 0 Bonus (0) 0 TOTAL SCORE: 1383 Bonus ------- None Cogmind --------- Core Integrity 50/400 Matter 271/300 Energy 63/100 System Corruption 0% Temperature Cool (0) Movement Core (1400) Ox27 Location -9/Materials Parts ------- > --- POWER (1) -------- (None) > --- PROPULSION (2) --- (None) > --- UTILITY (4) ------ Huge Storage Unit ECM Suite > --- WEAPON (2) ------- (None) > --- INVENTORY (25) --- Large Storage Unit Peak State ------------ > --- POWER ------------ Improved Ion Engine > --- PROPULSION ------- Light Treads > --- UTILITY ---------- Heat Sink Huge Storage Unit Sensor Array ECM Suite > --- WEAPON ----------- Beam Rifle Heavy Assault Rifle > --- INVENTORY -------- Large Storage Unit Grenade Launcher [Rating: 11] Favorites ----------- Power Ion Engine Engine Ion Engine Propulsion Compact Wheel Treads Light Treads Wheel Compact Wheel Utility Heat Sink Device Heat Sink Storage Small Storage Unit Weapon Small Laser Energy Gun Small Laser Ballistic Gun Assault Rifle Launcher Grenade Launcher Special Weapon Welding Torch Build | -11 -10 -9 ------- Run | Yrd Mat Mat Slots Evolved 2 | . . 2 Power . | . . . Propulsion . | . . . Utility 2 | . . 2 Weapon . | . . . Parts Attached 22 | 6 9 7 Power 3 | 1 1 1 Engine 3 | 1 1 1 Core . | . . . Reactor . | . . . Propulsion 4 | 2 2 . Treads 2 | . 2 . Leg . | . . . Wheel 2 | 2 . . Hover . | . . . Flight . | . . . Utility 6 | 1 2 3 Device 3 | . 1 2 Storage 3 | 1 1 1 Processor . | . . . Hackware . | . . . Protection . | . . . Artifact . | . . . Weapon 9 | 2 4 3 Energy Gun 3 | 1 1 1 Energy Cannon . | . . . Ballistic Gun 4 | 1 2 1 Ballistic Cannon . | . . . Launcher 1 | . . 1 Special Weapon 1 | . 1 . Impact Weapon . | . . . Slashing Weapon . | . . . Piercing Weapon . | . . . Special Melee Weapon . | . . . Unidentified Prototypes . | . . . Parts Lost 15 | . 6 9 Power 3 | . 1 2 Propulsion 4 | . 2 2 Utility 2 | . . 2 Weapon 6 | . 3 3 Highest Loss Streak 7 | . 6 7 To Critical Strikes 1 | . . 1 Average Slot Usage (%) 83 | . 90 73 Engine 11 | . 13 8 Treads 9 | . 5 14 Wheel 12 | . 21 . Device 15 | . 9 23 Storage 12 | . 14 11 Energy Gun 12 | . 14 10 Ballistic Gun 7 | . 9 5 Special Weapon 1 | . 1 . Naked Turns . | . . . Heaviest Build 97 | 12 27 97 Greatest Support 40 | 32 40 40 Greatest Overweight (x) 29 | . . 29 Average Overweight (x) . | . . 3 Largest Inventory Capacity 25 | 8 15 25 Average Capacity 14 | 7 8 24 Most Carried 6 | 3 6 3 Average Carried 2 | 1 3 1 Final Capacity 25 | 8 15 25 Final Carried 3 | 3 2 1 Class Distribution -------------------- 82% | Mutant 17% | Scavenger-Mutant Dominant Class ---------------- Mutant | -10/Materials Mutant | -9/Materials Resources | -11 -10 -9 ----------- Run | Yrd Mat Mat Matter Collected 442 | 263 114 65 Remotely . | . . . Salvage Created 598 | 95 339 164 Parts 27 | 2 11 14 Haulers Intercepted 1 | . 1 . Recyclers Shooed . | . . . Parts Field Recycled . | . . . Retrieved Matter . | . . . Parts Self-Destructed . | . . . Prevented . | . . . Kills | -11 -10 -9 ------- Run | Yrd Mat Mat Combat Hostiles Destroyed 12 | . 7 5 Guns 11 | . 7 4 AOE 1 | . . 1 Classes Destroyed 6 | 1 2 3 Hauler 1 | . 1 . Recycler 1 | 1 . . Watcher 1 | . . 1 Swarmer 2 | . . 2 Grunt 9 | . 7 2 Sentry 1 | . . 1 Best Kill Streak 3 | 1 3 2 Combat Bots Only 3 | . 3 2 Max Kills in Single Turn 2 | 1 1 2 Gunslinging 1 | . . 1 Exploded 1 | . . 1 Melee . | . . . Uniques/NPCs Destroyed . | . . . Combat | -11 -10 -9 -------- Run | Yrd Mat Mat Hostile Shots Fired 236 | . 71 165 Missed 65 | . 15 50 Damage Taken 1785 | . 735 1050 Core 531 | . 181 350 Absorbed by Shields . | . . . Core Remaining (%) 63 | 100 27 . Volleys Fired 72 | 3 50 19 Largest 2 | 2 2 2 Hottest 79 | 60 60 79 Shots Fired 118 | 6 84 28 Gun 108 | 6 75 27 Cannon . | . . . Launcher 1 | . . 1 Special 9 | . 9 . Kinetic 39 | 3 27 9 Thermal 78 | 3 57 18 Explosive 1 | . . 1 Electromagnetic . | . . . Robot Hit Streak 15 | 1 15 8 Robot Miss Streak 3 | 1 2 3 Penetration Max . | . . . Secondary Targets 3 | . 1 2 Max Gunslinging Chain 1 | . 1 1 Shots Hit Robots 90 | 3 67 20 Core Hits 36 | 2 26 8 Critical Kills . | . . . Critical Parts Destroyed . | . . . Critical Strikes . | . . . Melee Attacks . | . . . Impact . | . . . Slashing . | . . . Piercing . | . . . Sneak Attacks . | . . . Combat Hostiles . | . . . Follow-up Attacks . | . . . Damage Inflicted 1043 | 33 745 265 Guns 1009 | 33 738 238 Cannons . | . . . Explosions 27 | . . 27 Melee . | . . . Ramming . | . . . Kinetic 335 | . 272 63 Thermal 681 | 33 473 175 Explosive 27 | . . 27 Electromagnetic . | . . . Impact . | . . . Slashing . | . . . Piercing . | . . . Highest Corruption . | . . . Average Corruption . | . . . Corruption Purged . | . . . Corruption Blocked . | . . . Overload Shots . | . . . Overflow Damage . | . . . Projectiles . | . . . Explosions . | . . . Melee . | . . . Knockbacks . | . . . Impact . | . . . Kinetic . | . . . Secondary . | . . . Self-Inflicted Damage 26 | . . 26 Shots 1 | . . 1 Rammed . | . . . Targets Rammed . | . . . Kicked . | . . . Crushed . | . . . Highest Temperature 40 | 40 36 . Average Temperature 18 | 26 15 . Received Heat Transfer 582 | . 444 138 Siege Activations . | . . . Robots Corrupted . | . . . Combat Hostiles . | . . . Parts Fried . | . . . Impact Corruptions . | . . . Robots Melted . | . . . Combat Hostiles . | . . . Parts Melted . | . . . Heat Transferred 1648 | 75 1150 423 Parts Sabotaged . | . . . Parts Stolen . | . . . Parts Stripped . | . . . Power Chain Reactions . | . . . Alert | -11 -10 -9 ------- Run | Yrd Mat Mat Peak Influence 163 | 5 163 148 Initial 27 | . 3 27 Average 65 | . 60 81 Maximum Alert Level . | . . . Low Security (%) 100 | 100 100 100 Level 1 . | . . . Level 2 . | . . . Level 3 . | . . . Level 4 . | . . . Level 5 . | . . . High Security . | . . . Max Security . | . . . Squads Dispatched 3 | . 2 1 Investigation 3 | . 2 1 Extermination . | . . . Reinforcement . | . . . Assault . | . . . Garrison . | . . . Intercept . | . . . Searches Triggered . | . . . Construction Impeded . | . . . Haulers Reinforced . | . . . Active Scanning Responses . | . . . Cargo Convoy Interrupts . | . . . Stealth | -11 -10 -9 --------- Run | Yrd Mat Mat Distress Signals 1 | . 1 . Communications Jammed . | . . . Distress Signals . | . . . Times Spotted 24 | . 10 14 Peak Tracking Total 8 | . 3 8 Tactical Retreats 5 | . 2 3 Traps | -11 -10 -9 ------- Run | Yrd Mat Mat Traps Triggered . | . . . Indirectly . | . . . Trap Hack Attempts . | . . . Triggered . | . . . Disarmed . | . . . Reprogrammed . | . . . Reused . | . . . Traps Extracted . | . . . Installed . | . . . Triggered . | . . . Machines | -11 -10 -9 ---------- Run | Yrd Mat Mat Machines Disabled . | . . . Max in Single Turn . | . . . Machines Repaired . | . . . Machines Dismantled . | . . . Machines Sabotaged . | . . . Overloaded Fab Kills . | . . . Hacking | -11 -10 -9 --------- Run | Yrd Mat Mat Machines Accessed 5 | . 4 1 Terminals 4 | . 3 1 Fabricators . | . . . Repair Stations . | . . . Recycling Units 1 | . 1 . Scanalyzers . | . . . Garrison Access . | . . . Total Hacks 14 | . 10 4 Successful 6 | . 5 1 Failed 8 | . 5 3 Catastrophic 3 | . 2 1 Database Lockouts . | . . . Manual . | . . . Terminals 13 | . 9 4 Fabricators . | . . . Repair Stations . | . . . Recycling Units 1 | . 1 . Scanalyzers . | . . . Garrison Access . | . . . Terminal Hacks 6 | . 5 1 Robot Analysis 2 | . 2 . Emergency Access Points 1 | . 1 . Zone Layout 3 | . 2 1 Fabricator Hacks . | . . . Repair Station Hacks . | . . . Recycling Unit Hacks . | . . . Scanalyzer . | . . . Garrison Access Hacks . | . . . Unauthorized Hacks . | . . . Terminals . | . . . Fabricators . | . . . Repair Stations . | . . . Recycling Units . | . . . Scanalyzers . | . . . Garrison Access . | . . . Data Cores Recovered . | . . . Used . | . . . Hacking Detections 5 | . 4 1 Full Trace Events 3 | . 2 1 Feedback Events . | . . . Feedback Blocked . | . . . Robot Schematics Acquired . | . . . Robots Built . | . . . Authchips . | . . . Time . | . . . Total Robot Build Rating . | . . . Part Schematics Acquired . | . . . Parts Built . | . . . Authchips . | . . . Time . | . . . Total Part Build Rating . | . . . Parts Repaired . | . . . Time . | . . . Parts Recycled . | . . . Recycled Matter . | . . . Retrieved Matter . | . . . Retrieved Components . | . . . Parts Scanalyzed . | . . . Part Schematics Acquired . | . . . Parts Damaged . | . . . Bothacking | -11 -10 -9 ------------ Run | Yrd Mat Mat Used RIF Installer . | . . . Robots Hacked . | . . . Non-combat . | . . . Combat . | . . . Robot Hacks Applied . | . . . Relay Couplers Released . | . . . Fabnet Peak Effective % . | . . . Robots Rewired . | . . . Allies Hacked . | . . . Hacks Repelled . | . . . Allies | -11 -10 -9 -------- Run | Yrd Mat Mat Total Allies . | . . . Largest Group . | . . . Highest-Rated Group . | . . . Highest-Rated Ally . | . . . Total Orders . | . . . Ally Attacks . | . . . Total Damage . | . . . Kills . | . . . Allies Corrupted . | . . . Allies Melted . | . . . Intel | -11 -10 -9 ------- Run | Yrd Mat Mat Robot Analysis Total 2 | . 2 . Derelict Logs Recovered . | . . . Drone Launches . | . . . Drone Recoveries . | . . . Exploration | -11 -10 -9 ------------- Run | Yrd Mat Mat Turns Passed 1101 | 61 600 440 Spaces Moved 453 | 41 329 83 Core 8 | 6 . 2 Treads 126 | . 45 81 Legs . | . . . Wheels 319 | 35 284 . Hover . | . . . Flight . | . . . Fastest Speed 50 | 50 100 160 Average Speed 157 | 92 108 384 Slowest Speed 1500 | 100 160 1500 Overloaded Moves . | . . . Propulsion Burnouts . | . . . Robots Hopped . | . . . Cave-ins Triggered . | . . . Exploration Rate (%) 17 | 3 41 9 Regions Visited 2 Branch Regions . Pre-discovered Areas . | . . . Known Exits Taken . | . . . Unknown Exits Taken 2 | 1 1 . Scrap Searched . | . . . Spaces Dug . | . . . Terrain Destroyed 8 | . . 8 Melee . | . . . Projectile . | . . . AOE 8 | . . 8 Terrain Rammed . | . . . Walls Destroyed . | . . . Machines Disabled . | . . . Actions | -11 -10 -9 --------- Run | Yrd Mat Mat Total 722 | 58 487 177 Wait 150 | . 91 59 Move 451 | 40 328 83 Hop . | . . . Pick Up 22 | 9 7 6 Fast Attach . | . . . Attach 20 | 6 7 7 Detach 1 | . . 1 Swap 2 | . 2 . Drop 4 | . 2 2 Fire 72 | 3 50 19 Melee . | . . . Ram . | . . . Kick . | . . . Crush . | . . . Escape Stasis . | . . . Rewire . | . . . Trap . | . . . Miscellaneous . | . . . Route ------- -11/Scrapyard -10/Materials -9/Materials History --------- Turn | Location | Event 23 | -11/Scrapyard | Discovered new exit (range 15) 62 | -11/Scrapyard | Entered Materials 307 | -10/Materials | Build established: Mutant 547 | -10/Materials | Core integrity fell below 50% 589 | -10/Materials | Lost 6 parts (1p2n3w) 630 | -10/Materials | Discovered new exit (range 5) 662 | -10/Materials | Entered another Materials area 662 | -9/Materials | Evolved 2 slots: Utility x2 1080 | -9/Materials | Core integrity fell below 50% 1098 | -9/Materials | Core integrity fell below 20% 1102 | -9/Materials | Self-destructed Last Messages --------------- Acquired 12 matter. R-06 Scavenger collects Hover Unit. R-06 Scavenger collects Lgt. Ion Engine. Acquired Sensor Array. C-30 ARC bursts open, deploying its payload. S-10 Pest unfolds itself. Critical hit (Destroy). Lgt. Treads destroyed. S-10 Pest destroyed. Switching to secondary target: S-10 Pest. Imp. Ion Engine destroyed. Sensor Array destroyed. Hvy. Assault Rifle destroyed. S-10 Pest destroyed. Beam Rifle destroyed. U-05 Engineer builds a Door. Heat Sink destroyed. S-10 Pest destroyed. U-05 Engineer destroyed. Grenade Launcher destroyed. Map ----- +----------------------------------------------------+ | ?????????????????????????????????????????????????? | | ?????????????????????????????????????????????????? | | ?????????????????????????????????????????????????? | | ?????????????????????????????????????????????????? | | ?????????????????????????????????????????????????? | | ????????????????????????????????????### #????? | | ???????????????????????????????????? # """ #????? | | ???????????????????????????????????? # """ #????? | | ???????????????????????????????????? # """ #????? | | ??????????????????????? ???????? # #????? | | ??????????????????????# ??????? # ###### | | ??????????????????????# ??????? # ## # | | ??????????????????????# % ???????? ###+#### # | | ??????????????????????# ???????? # | | ??????????????????????# s*%[???????? # | | ??????????????????????# = ???????? # | | ????????????? ????????# ss ???????? ##### ## # | | ???????????? ########s %#??##???? #???# ###### | | ????????????? !=#? ???? #???# #????? | | ??????????????? *%#?""" ?? #???# #?#### | | ????????????????? |=+ """ ??? #####+### "" | | ??????????????????? # ""????? # # | | ????????????????????? = ?????? # # | | ??????????????????????[% ??????? + """ # | | ???????????????????????# % #??????# # """ ###+ | | ???????????????????????# @ #??????# # """ # | | ???????????????????????# #??????# ######### | | ???????????????????????## ##??????# ##### | | ????????????????????????# #???????# | | ????????????????????????# #???????# ##### | | ????????????????????????# #???????#########???### | | ????????????????????????# #???????#####?????????# | | ????????????????????????# ######### ########### | | ????????????????????????# ! % | | ????????????????????????########### #### | | ???????????????????????????????#####+##### | | ???????????????????????????????# + | | ???????????????????????????????# ######### | | ???????????????????????????????# #???????? | | ???????????????????????????????# #???????? | | ???????????????????????????????###########???????? | | | | | | | | | | | | | | | | | | | +----------------------------------------------------+ Best States ------------- Heat Dissipation 38 Energy Generation 12 Energy Capacity 265 Matter Stores 300 Matter Capacity 300 Sight Range 16 Robot Scan Range 14 Terrain Scan Density 10 ECM Strength 1 Evasion (%) 40 Recoil Reduction 2 Item Schematics ----------------- None Robot Schematics ------------------ None Fabricated ------------ Nothing Alien Tech Used ----------------- None Achievements -------------- None Challenges ------------ None Game ------ Seed GravitonChainCleaver Manual? 0 Play Time 00:11:20 Cumulative 31.6 hours Start 2024.05.03 @ 23:24:40 End 2024.05.03 @ 23:33:42 Sessions 1 Manual Loads 0 Difficulty Rogue Special Mode None Game No. 87 Rogue 85 Adventurer 2 Explorer 0 Win Type - Total 0 Types 0/0/0/0/0/0/0/0/0 Lore% 23 Gallery% 33 Achievement% 23 Wizard Run 0 Options --------- Layout 1 ASCII 0 Keyboard 0 Movement Mouse Keybinds 0 Fullscreen 1 Font 16/SmallcapsGlow Map View 55x38 Zoom Use 18% Tactical HUD 0 Map Filters NONE Filters NONE Steam 1 RUN: c04af19f-c45d-43d3-8bbc-85358d5e8ec0